fUST/lending_fUST_20250819
["ID","MTS","AMOUNT","RATE_DAILY","PERIOD"]
[380110333,1755547850547,-480.0,0.00020821,2]
[380110334,1755547850556,-487.57,0.00020821,2]
[380110335,1755547850566,-480.0,0.00020821,2]
[380110336,1755547850575,-480.0,0.00020821,2]
[380110337,1755547850584,-523.33,0.00020821,2]
[380110338,1755547850593,-480.0,0.00020821,2]
[380110339,1755547850603,-480.0,0.00020821,2]
[380110340,1755547850612,-480.0,0.00020821,2]
[380110341,1755547850622,-450.89034887,0.00020821,2]
[380110342,1755547850711,-480.0,0.00020821,2]
[380110343,1755547850720,-480.0,0.00020821,2]
[380110344,1755547850730,-2260.96,0.00020821,2]
[380110345,1755547850739,-517.44,0.00020821,2]
[380110346,1755547850748,-480.0,0.00020821,2]
[380110347,1755547850757,-955.03,0.00020821,2]
[380110348,1755547850767,-480.0,0.00020821,2]
[380110349,1755547850776,-480.0,0.00020821,2]
[380110350,1755547850786,-480.0,0.00020821,2]
[380110351,1755547850795,-480.0,0.00020821,2]
[380110352,1755547850808,-480.0,0.00020821,2]
[380110353,1755547850818,-1150.62,0.00020821,2]
[380110354,1755547850828,-480.0,0.00020821,2]
[380110355,1755547850837,-480.0,0.00020821,2]
[380110356,1755547850847,-480.0,0.00020821,2]
[380110357,1755547850857,-480.0,0.00020821,2]
[380110358,1755547850867,-1619.67,0.00020821,2]
[380110359,1755547850880,-845.71,0.00020821,2]
[380110360,1755547850889,-498.25,0.00020821,2]
[380110361,1755547850898,-480.0,0.00020821,2]
[380110362,1755547850907,-480.0,0.00020821,2]
[380110363,1755547850917,-487.05,0.00020821,2]
[380110364,1755547850927,-480.0,0.00020821,2]
[380110365,1755547850936,-571.89,0.00020821,2]
[380110366,1755547850946,-813.53,0.00020821,2]
[380110367,1755547850955,-480.0,0.00020821,2]
[380110368,1755547850964,-480.0,0.00020821,2]
[380110369,1755547850974,-480.0,0.00020821,2]
[380110370,1755547850983,-480.0,0.00020821,2]
[380110371,1755547850992,-414.01,0.00020821,2]
[380110372,1755547851002,-480.0,0.00020821,2]
[380110373,1755547851011,-480.0,0.00020821,2]
[380110374,1755547851020,-530.78,0.00020821,2]
[380110375,1755547851030,-480.0,0.00020821,2]
[380110376,1755547851039,-259.92,0.00020821,2]
[380110377,1755547851049,-2680.09,0.00020821,2]
[380110378,1755547851058,-545.89,0.00020821,2]
[380110379,1755547851068,-600.28,0.00020821,2]
[380110380,1755547851077,-480.0,0.00020821,2]
[380110381,1755547851087,-480.0,0.00020821,2]
[380110382,1755547851097,-216.85420361,0.0002094,2]
[380110383,1755547851106,-160.0,0.0002094,2]
[380110384,1755547851115,-160.0,0.0002094,2]
[380110385,1755547851125,-417.15472785,0.00020942,2]
[380110386,1755547851134,-160.0,0.00020942,2]
[380110387,1755547851144,-12683.78573522,0.00020942,2]
[380110388,1755547851153,-215.75323784,0.00020942,2]
[380110389,1755547851164,-160.0,0.00020942,2]
[380110390,1755547851173,-232.18122251,0.00020942,2]
[380110391,1755547851184,-375.82681177,0.00020942,2]
[380110392,1755547851193,-843.81736472,0.00020942,2]
[380110393,1755547851203,-160.0,0.00020942,2]
[380110394,1755547851213,-173.85871187,0.00020963,2]
[380110395,1755547851222,-260.0,0.00020984,2]
[380110396,1755547851232,-150.0,0.00021037,2]
[380110397,1755547851241,-480.0,0.00021095,2]
[380110398,1755547851250,-480.0,0.00021095,2]
[380110399,1755547851261,-480.0,0.00021095,2]
[380110400,1755547851270,-300.74864285,0.00021095,2]
[380110401,1755547851280,-480.0,0.00021095,2]
[380110402,1755547851289,-480.0,0.00021095,2]
[380110403,1755547851299,-480.0,0.00021095,2]
[380110404,1755547851308,-480.0,0.00021095,2]
[380110405,1755547851318,-480.0,0.00021095,2]
[380110406,1755547851327,-480.0,0.00021095,2]
[380110407,1755547851337,-480.0,0.00021095,2]
[380110408,1755547851346,-2260.96,0.00021095,2]
[380110409,1755547851356,-517.44,0.00021095,2]
[380110410,1755547851365,-480.0,0.00021095,2]
[380110411,1755547851375,-955.03,0.00021095,2]
[380110412,1755547851384,-480.0,0.00021095,2]
[380110413,1755547851393,-480.0,0.00021095,2]
[380110414,1755547851403,-480.0,0.00021095,2]
[380110415,1755547851413,-480.0,0.00021095,2]
[380110416,1755547851423,-480.0,0.00021095,2]
[380110417,1755547851434,-1150.62,0.00021095,2]
[380110418,1755547851443,-575.55,0.00021095,2]
[380110419,1755547851452,-480.0,0.00021095,2]
[380110420,1755547851462,-480.0,0.00021095,2]
[380110421,1755547851472,-480.0,0.00021095,2]
[380110422,1755547851481,-1619.67,0.00021095,2]
[380110423,1755547851490,-845.71,0.00021095,2]
[380110424,1755547851500,-498.25,0.00021095,2]
[380110425,1755547851509,-480.0,0.00021095,2]
[380110426,1755547851518,-480.0,0.00021095,2]
[380110427,1755547851526,-487.05,0.00021095,2]
[380110428,1755547851535,-480.0,0.00021095,2]
[380110429,1755547851545,-571.89,0.00021095,2]
[380110430,1755547851554,-813.53,0.00021095,2]
[380110431,1755547851564,-480.0,0.00021095,2]
[380110432,1755547851573,-480.0,0.00021095,2]
[380110433,1755547851582,-480.0,0.00021095,2]
[380110434,1755547851592,-480.0,0.00021095,2]
[380110435,1755547851601,-480.0,0.00021095,2]
[380110436,1755547851611,-480.0,0.00021095,2]
[380110437,1755547851620,-530.78,0.00021095,2]
[380110438,1755547851629,-202.65,0.00021095,2]
[380110439,1755547851639,-2680.09,0.00021095,2]
[380110440,1755547851648,-545.89,0.00021095,2]
[380110441,1755547851658,-600.28,0.00021095,2]
[380110442,1755547851667,-480.0,0.00021095,2]
[380110443,1755547851676,-480.0,0.00021095,2]
[380110444,1755547851685,-3000.0,0.000211,2]
[380110445,1755547851694,-3000.0,0.0002111,2]
[380110446,1755547851704,-3000.0,0.0002112,2]
[380110447,1755547851714,-3067.891161,0.0002113,2]
[380110448,1755547851723,-480.0,0.00021369,2]
[380110449,1755547851732,-480.0,0.00021369,2]
[380110450,1755547851742,-556.21,0.00021369,2]
[380110451,1755547851751,-200.76419496,0.00021369,2]
[380110452,1755547851761,-480.0,0.00021369,2]
[380110453,1755547851770,-480.0,0.00021369,2]
[380110454,1755547851780,-200.1,0.00021369,2]
[380110455,1755547851789,-480.0,0.00021369,2]
[380110456,1755547851798,-480.0,0.00021369,2]
[380110457,1755547851810,-480.0,0.00021369,2]
[380110458,1755547851819,-2260.96,0.00021369,2]
[380110459,1755547851828,-517.44,0.00021369,2]
[380110460,1755547851838,-480.0,0.00021369,2]
[380110461,1755547851848,-955.03,0.00021369,2]
[380110462,1755547851857,-480.0,0.00021369,2]
[380110463,1755547851867,-480.0,0.00021369,2]
[380110464,1755547851877,-480.0,0.00021369,2]
[380110465,1755547851886,-480.0,0.00021369,2]
[380110466,1755547851895,-1150.62,0.00021369,2]
[380110467,1755547851904,-480.0,0.00021369,2]
[380110468,1755547851914,-480.0,0.00021369,2]
[380110469,1755547851923,-480.0,0.00021369,2]
[380110470,1755547851932,-1619.67,0.00021369,2]
[380110471,1755547851941,-845.71,0.00021369,2]
[380110472,1755547851952,-498.25,0.00021369,2]
[380110473,1755547851961,-480.0,0.00021369,2]
[380110474,1755547851970,-480.0,0.00021369,2]
[380110475,1755547851979,-487.05,0.00021369,2]
[380110476,1755547851989,-480.0,0.00021369,2]
[380110477,1755547851998,-571.89,0.00021369,2]
[380110478,1755547852007,-813.53,0.00021369,2]
[380110479,1755547852016,-480.0,0.00021369,2]
[380110480,1755547852025,-586.53394444,0.00021369,2]
[380110481,1755547852035,-480.0,0.00021369,2]
[380110482,1755547852044,-480.0,0.00021369,2]
[380110483,1755547852053,-480.0,0.00021369,2]
[380110484,1755547852062,-480.0,0.00021369,2]
[380110485,1755547852072,-530.78,0.00021369,2]
[380110486,1755547852081,-2680.09,0.00021369,2]
[380110487,1755547852090,-545.89,0.00021369,2]
[380110488,1755547852100,-600.28,0.00021369,2]
[380110489,1755547852109,-480.0,0.00021369,2]
[380110490,1755547852118,-480.0,0.00021369,2]
[380110491,1755547852127,-720.0,0.00021517,20]
[380110492,1755547852137,-360.0,0.00021532,2]
[380110493,1755547852146,-5000.0,0.00021561,2]
[380110494,1755547852155,-500.0,0.00021642,2]
[380110495,1755547852164,-480.0,0.00021643,2]
[380110496,1755547852173,-480.0,0.00021643,2]
[380110497,1755547852183,-480.0,0.00021643,2]
[380110498,1755547852192,-480.0,0.00021643,2]
[380110499,1755547852201,-480.0,0.00021643,2]
[380110500,1755547852210,-480.0,0.00021643,2]
[380110501,1755547852291,-480.0,0.00021643,2]
[380110502,1755547852301,-2260.96,0.00021643,2]
[380110503,1755547852312,-517.44,0.00021643,2]
[380110504,1755547852322,-480.0,0.00021643,2]
[380110505,1755547852331,-955.03,0.00021643,2]
[380110506,1755547852340,-480.0,0.00021643,2]
[380110507,1755547852349,-480.0,0.00021643,2]
[380110508,1755547852358,-480.0,0.00021643,2]
[380110509,1755547852367,-480.0,0.00021643,2]
[380110510,1755547852376,-1150.62,0.00021643,2]
[380110511,1755547852385,-480.0,0.00021643,2]
[380110512,1755547852395,-480.0,0.00021643,2]
[380110513,1755547852403,-480.0,0.00021643,2]
[380110514,1755547852412,-1619.67,0.00021643,2]
[380110515,1755547852422,-845.71,0.00021643,2]
[380110516,1755547852432,-498.25,0.00021643,2]
[380110517,1755547852441,-480.0,0.00021643,2]
[380110518,1755547852451,-480.0,0.00021643,2]
[380110519,1755547852460,-487.05,0.00021643,2]
[380110520,1755547852469,-480.0,0.00021643,2]
[380110521,1755547852478,-571.89,0.00021643,2]
[380110522,1755547852487,-813.53,0.00021643,2]
[380110523,1755547852496,-381.32,0.00021643,2]
[380110524,1755547852505,-480.0,0.00021643,2]
[380110525,1755547852514,-480.0,0.00021643,2]
[380110526,1755547852524,-480.0,0.00021643,2]
[380110527,1755547852532,-480.0,0.00021643,2]
[380110528,1755547852542,-530.78,0.00021643,2]
[380110529,1755547852551,-2680.09,0.00021643,2]
[380110530,1755547852560,-545.89,0.00021643,2]
[380110531,1755547852569,-600.28,0.00021643,2]
[380110532,1755547852578,-283.36,0.00021643,2]
[380110533,1755547852588,-406.50564938,0.00021643,2]
[380110534,1755547852597,-480.0,0.00021917,2]
[380110535,1755547852607,-303.79,0.00021917,2]
[380110536,1755547852616,-480.0,0.00021917,2]
[380110537,1755547852625,-480.0,0.00021917,2]
[380110538,1755547852635,-480.0,0.00021917,2]
[380110539,1755547852644,-480.0,0.00021917,2]
[380110540,1755547852653,-480.0,0.00021917,2]
[380110541,1755547852662,-2260.96,0.00021917,2]
[380110542,1755547852672,-517.44,0.00021917,2]
[380110543,1755547852682,-480.0,0.00021917,2]
[380110544,1755547852691,-955.03,0.00021917,2]
[380110545,1755547852700,-480.0,0.00021917,2]
[380110546,1755547852709,-480.0,0.00021917,2]
[380110547,1755547852719,-480.0,0.00021917,2]
[380110548,1755547852729,-480.0,0.00021917,2]
[380110549,1755547852738,-1150.62,0.00021917,2]
[380110550,1755547852747,-480.0,0.00021917,2]
[380110551,1755547852756,-480.0,0.00021917,2]
[380110552,1755547852765,-480.0,0.00021917,2]
[380110553,1755547852774,-1619.67,0.00021917,2]
[380110554,1755547852783,-845.71,0.00021917,2]
[380110555,1755547852793,-498.25,0.00021917,2]
[380110556,1755547852806,-480.0,0.00021917,2]
[380110557,1755547852815,-480.0,0.00021917,2]
[380110558,1755547852825,-487.05,0.00021917,2]
[380110559,1755547852834,-480.0,0.00021917,2]
[380110560,1755547852843,-571.89,0.00021917,2]
[380110561,1755547852854,-813.53,0.00021917,2]
[380110562,1755547852863,-480.0,0.00021917,2]
[380110563,1755547852873,-480.0,0.00021917,2]
[380110564,1755547852885,-480.0,0.00021917,2]
[380110565,1755547852895,-480.0,0.00021917,2]
[380110566,1755547852904,-530.78,0.00021917,2]
[380110567,1755547852913,-2680.09,0.00021917,2]
[380110568,1755547852922,-545.89,0.00021917,2]
[380110569,1755547852932,-600.28,0.00021917,2]
[380110570,1755547852941,-1554.29,0.00022,7]
[380110571,1755547852950,-5926.73,0.00022,7]
[380110572,1755547852960,-12494.08,0.00022,2]
[380110573,1755547852969,-684.15,0.00022,7]
[380110574,1755547852979,-292.86,0.00022055,2]
[380110575,1755547852988,-460.0,0.0002208,2]
[380110576,1755547852998,-220.937,0.00022157,2]
[380110577,1755547853008,-250.0,0.00022157,2]
[380110578,1755547853017,-500.0,0.0002219,2]
[380110579,1755547853027,-480.0,0.00022191,2]
[380110580,1755547853037,-480.0,0.00022191,2]
[380110581,1755547853046,-233.05,0.00022191,2]
[380110582,1755547853055,-480.0,0.00022191,2]
[380110583,1755547853065,-480.0,0.00022191,2]
[380110584,1755547853074,-480.0,0.00022191,2]
[380110585,1755547853084,-2260.96,0.00022191,2]
[380110586,1755547853093,-517.44,0.00022191,2]
[380110587,1755547853103,-480.0,0.00022191,2]
[380110588,1755547853112,-955.03,0.00022191,2]
[380110589,1755547853121,-480.0,0.00022191,2]
[380110590,1755547853130,-480.0,0.00022191,2]
[380110591,1755547853139,-480.0,0.00022191,2]
[380110592,1755547853149,-480.0,0.00022191,2]
[380110593,1755547853159,-1150.62,0.00022191,2]
[380110594,1755547853168,-480.0,0.00022191,2]
[380110595,1755547853178,-311.66480256,0.00022191,2]
[380110596,1755547853187,-480.0,0.00022191,2]
[380110597,1755547853196,-1619.67,0.00022191,2]
[380110598,1755547853205,-845.71,0.00022191,2]
[380110599,1755547853214,-498.25,0.00022191,2]
[380110600,1755547853224,-480.0,0.00022191,2]
[380110601,1755547853233,-480.0,0.00022191,2]
[380110602,1755547853242,-487.05,0.00022191,2]
[380110603,1755547853252,-480.0,0.00022191,2]
[380110604,1755547853262,-571.89,0.00022191,2]
[380110605,1755547853271,-813.53,0.00022191,2]
[380110606,1755547853281,-480.0,0.00022191,2]
[380110607,1755547853291,-480.0,0.00022191,2]
[380110608,1755547853300,-480.0,0.00022191,2]
[380110609,1755547853309,-530.78,0.00022191,2]
[380110610,1755547853318,-480.0,0.00022191,2]
[380110611,1755547853327,-2680.09,0.00022191,2]
[380110612,1755547853337,-545.89,0.00022191,2]
[380110613,1755547853348,-600.28,0.00022191,2]
[380110614,1755547853357,-361.941,0.00022216,2]
[380110615,1755547853367,-261.278,0.00022345,2]
[380110616,1755547853376,-219.175,0.00022345,2]
[380110617,1755547853386,-972.0,0.00022345,2]
[380110618,1755547853395,-637.0,0.00022345,2]
[380110619,1755547853405,-2153.0,0.00022345,2]
[380110620,1755547853415,-480.0,0.00022465,2]
[380110621,1755547853426,-480.0,0.00022465,2]
[380110622,1755547853436,-480.0,0.00022465,2]
[380110623,1755547853445,-480.0,0.00022465,2]
[380110624,1755547853454,-2260.96,0.00022465,2]
[380110625,1755547853464,-480.0,0.00022465,2]
[380110626,1755547853473,-517.44,0.00022465,2]
[380110627,1755547853482,-955.03,0.00022465,2]
[380110628,1755547853492,-523.6,0.00022465,2]
[380110629,1755547853501,-480.0,0.00022465,2]
[380110630,1755547853510,-480.0,0.00022465,2]
[380110631,1755547853521,-480.0,0.00022465,2]
[380110632,1755547853530,-1150.62,0.00022465,2]
[380110633,1755547853539,-480.0,0.00022465,2]
[380110634,1755547853548,-557.21,0.00022465,2]
[380110635,1755547853558,-1619.67,0.00022465,2]
[380110636,1755547853567,-845.71,0.00022465,2]
[380110637,1755547853576,-498.25,0.00022465,2]
[380110638,1755547853586,-480.0,0.00022465,2]
[380110639,1755547853595,-480.0,0.00022465,2]
[380110640,1755547853604,-487.05,0.00022465,2]
[380110641,1755547853613,-480.0,0.00022465,2]
[380110642,1755547853623,-571.89,0.00022465,2]
[380110643,1755547853632,-813.53,0.00022465,2]
[380110644,1755547853641,-480.0,0.00022465,2]
[380110645,1755547853651,-197.36,0.00022465,2]
[380110646,1755547853660,-480.0,0.00022465,2]
[380110647,1755547853734,-530.78,0.00022465,2]
[380110648,1755547853749,-480.0,0.00022465,2]
[380110649,1755547853759,-2680.09,0.00022465,2]
[380110650,1755547853768,-545.89,0.00022465,2]
[380110651,1755547853777,-600.28,0.00022465,2]
[380110652,1755547853787,-560.0,0.00022628,2]
[380110653,1755547853796,-587.0,0.00022662,2]
[380110654,1755547853808,-480.0,0.00022739,2]
[380110655,1755547853817,-301.32,0.00022739,2]
[380110656,1755547853827,-480.0,0.00022739,2]
[380110657,1755547853836,-480.0,0.00022739,2]
[380110658,1755547853845,-2260.96,0.00022739,2]
[380110659,1755547853855,-480.0,0.00022739,2]
[380110660,1755547853864,-517.44,0.00022739,2]
[380110661,1755547853873,-955.03,0.00022739,2]
[380110662,1755547853883,-480.0,0.00022739,2]
[380110663,1755547853892,-480.0,0.00022739,2]
[380110664,1755547853901,-480.0,0.00022739,2]
[380110665,1755547853910,-1150.62,0.00022739,2]
[380110666,1755547853920,-480.0,0.00022739,2]
[380110667,1755547853930,-1619.67,0.00022739,2]
[380110668,1755547853940,-845.71,0.00022739,2]
[380110669,1755547853949,-498.25,0.00022739,2]
[380110670,1755547853959,-164.64,0.00022739,2]
[380110671,1755547853969,-480.0,0.00022739,2]
[380110672,1755547853980,-487.05,0.00022739,2]
[380110673,1755547853990,-480.0,0.00022739,2]
[380110674,1755547854001,-571.89,0.00022739,2]
[380110675,1755547854011,-813.53,0.00022739,2]
[380110676,1755547854021,-480.0,0.00022739,2]
[380110677,1755547854031,-195.51828017,0.00022739,2]
[380110678,1755547854041,-530.78,0.00022739,2]
[380110679,1755547854052,-400.19,0.00022739,2]
[380110680,1755547854061,-2680.09,0.00022739,2]
[380110681,1755547854070,-545.89,0.00022739,2]
[380110682,1755547854081,-600.28,0.00022739,2]
[380110683,1755547854091,-160.0,0.00023,2]
[380110684,1755547854101,-450.66,0.00023013,2]
[380110685,1755547854110,-480.0,0.00023013,2]
[380110686,1755547854120,-554.49773236,0.00023013,2]
[380110687,1755547854129,-2260.96,0.00023013,2]
[380110688,1755547854139,-480.0,0.00023013,2]
[380110689,1755547854148,-517.44,0.00023013,2]
[380110690,1755547854158,-955.03,0.00023013,2]
[380110691,1755547854167,-480.0,0.00023013,2]
[380110692,1755547854176,-480.0,0.00023013,2]
[380110693,1755547854187,-480.0,0.00023013,2]
[380110694,1755547854196,-1150.62,0.00023013,2]
[380110695,1755547854205,-462.72,0.00023013,2]
[380110696,1755547854215,-1619.67,0.00023013,2]
[380110697,1755547854225,-845.71,0.00023013,2]
[380110698,1755547854235,-498.25,0.00023013,2]
[380110699,1755547854245,-194.84,0.00023013,2]
[380110700,1755547854254,-487.05,0.00023013,2]
[380110701,1755547854263,-509.23,0.00023013,2]
[380110702,1755547854272,-571.89,0.00023013,2]
[380110703,1755547854281,-813.53,0.00023013,2]
[380110704,1755547854291,-480.0,0.00023013,2]
[380110705,1755547854300,-530.78,0.00023013,2]
[380110706,1755547854309,-2680.09,0.00023013,2]
[380110707,1755547854319,-545.89,0.00023013,2]
[380110708,1755547854328,-600.28,0.00023013,2]
[380110709,1755547854337,-439.3,0.00023057,2]
[380110710,1755547854347,-660.0,0.00023176,2]
[380110711,1755547854356,-480.0,0.00023287,2]
[380110712,1755547854365,-2260.96,0.00023287,2]
[380110713,1755547854375,-480.0,0.00023287,2]
[380110714,1755547854383,-517.44,0.00023287,2]
[380110715,1755547854392,-955.03,0.00023287,2]
[380110716,1755547854402,-480.0,0.00023287,2]
[380110717,1755547854411,-480.0,0.00023287,2]
[380110718,1755547854420,-480.0,0.00023287,2]
[380110719,1755547854429,-1150.62,0.00023287,2]
[380110720,1755547854439,-1619.67,0.00023287,2]
[380110721,1755547854448,-845.71,0.00023287,2]
[380110722,1755547854461,-498.25,0.00023287,2]
[380110723,1755547854470,-487.05,0.00023287,2]
[380110724,1755547854480,-571.89,0.00023287,2]
[380110725,1755547854489,-813.53,0.00023287,2]
[380110726,1755547854498,-430.52,0.00023287,2]
[380110727,1755547854508,-530.78,0.00023287,2]
[380110728,1755547854517,-2680.09,0.00023287,2]
[380110729,1755547854526,-545.89,0.00023287,2]
[380110730,1755547854536,-600.28,0.00023287,2]
[380110731,1755547854545,-151.0,0.00023491,2]
[380110732,1755547854554,-151.0,0.00023491,2]
[380110733,1755547854563,-151.0,0.00023491,2]
[380110734,1755547854572,-151.0,0.00023491,2]
[380110735,1755547854581,-151.0,0.00023491,2]
[380110736,1755547854591,-151.0,0.00023491,2]
[380110737,1755547854600,-151.0,0.00023491,2]
[380110738,1755547854609,-151.0,0.00023491,2]
[380110739,1755547854618,-151.0,0.00023491,2]
[380110740,1755547854627,-151.0,0.00023491,2]
[380110741,1755547854636,-151.0,0.00023491,2]
[380110742,1755547854646,-151.0,0.00023491,2]
[380110743,1755547854655,-151.0,0.00023491,2]
[380110744,1755547854664,-151.0,0.00023491,2]
[380110745,1755547854674,-151.0,0.00023491,2]
[380110746,1755547854684,-151.0,0.00023491,2]
[380110747,1755547854694,-151.0,0.00023491,2]
[380110748,1755547854703,-151.0,0.00023491,2]
[380110749,1755547854713,-160.02631238,0.00023491,2]
[380110750,1755547854722,-151.0,0.00023491,2]
[380110751,1755547854731,-151.0,0.00023491,2]
[380110752,1755547854741,-1890.46324625,0.00023491,2]
[380110753,1755547854750,-490.23,0.00023561,2]
[380110754,1755547854759,-2260.96,0.00023561,2]
[380110755,1755547854769,-480.0,0.00023561,2]
[380110756,1755547854778,-517.44,0.00023561,2]
[380110757,1755547854788,-955.03,0.00023561,2]
[380110758,1755547854797,-480.0,0.00023561,2]
[380110759,1755547854811,-480.0,0.00023561,2]
[380110760,1755547854821,-558.9615697,0.00023561,2]
[380110761,1755547854830,-1150.62,0.00023561,2]
[380110762,1755547854839,-1619.67,0.00023561,2]
[380110763,1755547854851,-845.71,0.00023561,2]
[380110764,1755547854860,-498.25,0.00023561,2]
[380110765,1755547854870,-487.05,0.00023561,2]
[380110766,1755547854881,-571.89,0.00023561,2]
[380110767,1755547854891,-813.53,0.00023561,2]
[380110768,1755547854900,-530.78,0.00023561,2]
[380110769,1755547854910,-2680.09,0.00023561,2]
[380110770,1755547854919,-545.89,0.00023561,2]
[380110771,1755547854929,-600.28,0.00023561,2]
[380110772,1755547854938,-864.0,0.00023668,20]
[380110773,1755547854947,-1554.29,0.000237,7]
[380110774,1755547854956,-5926.73,0.000237,7]
[380110775,1755547854966,-12683.78573522,0.000237,7]
[380110776,1755547854975,-417.15472785,0.000237,7]
[380110777,1755547854984,-160.0,0.000237,7]
[380110778,1755547854993,-375.82681177,0.000237,7]
[380110779,1755547855003,-420.0,0.00023724,2]
[380110780,1755547855013,-2260.96,0.00023835,2]
[380110781,1755547855022,-480.0,0.00023835,2]
[380110782,1755547855101,-517.44,0.00023835,2]
[380110783,1755547855110,-955.03,0.00023835,2]
[380110784,1755547855120,-480.0,0.00023835,2]
[380110785,1755547855131,-480.0,0.00023835,2]
[380110786,1755547855141,-1150.62,0.00023835,2]
[380110787,1755547855150,-1619.67,0.00023835,2]
[380110788,1755547855159,-498.25,0.00023835,2]
[380110789,1755547855169,-845.71,0.00023835,2]
[380110790,1755547855178,-487.05,0.00023835,2]
[380110791,1755547855188,-571.89,0.00023835,2]
[380110792,1755547855197,-813.53,0.00023835,2]
[380110793,1755547855206,-530.78,0.00023835,2]
[380110794,1755547855216,-2680.09,0.00023835,2]
[380110795,1755547855225,-545.89,0.00023835,2]
[380110796,1755547855235,-600.28,0.00023835,2]
[380110797,1755547855244,-700.0,0.00023865,2]
[380110798,1755547855253,-12494.08,0.000239,2]
[380110799,1755547855263,-684.15,0.000239,7]
[380110800,1755547855272,-216.85420361,0.00024,7]
[380110801,1755547855282,-843.81736472,0.00024,7]
[380110802,1755547855291,-232.18122251,0.00024,7]
[380110803,1755547855300,-500.0,0.00024006,2]
[380110804,1755547855309,-585.73,0.0002406,2]
[380110805,1755547855319,-2260.96,0.00024109,2]
[380110806,1755547855328,-545.79,0.00024109,2]
[380110807,1755547855337,-517.44,0.00024109,2]
[380110808,1755547855346,-955.03,0.00024109,2]
[380110809,1755547855355,-480.0,0.00024109,2]
[380110810,1755547855364,-480.0,0.00024109,2]
[380110811,1755547855374,-1150.62,0.00024109,2]
[380110812,1755547855383,-1619.67,0.00024109,2]
[380110813,1755547855392,-498.25,0.00024109,2]
[380110814,1755547855402,-845.71,0.00024109,2]
[380110815,1755547855411,-487.05,0.00024109,2]
[380110816,1755547855420,-571.89,0.00024109,2]
[380110817,1755547855430,-813.53,0.00024109,2]
[380110818,1755547855439,-530.78,0.00024109,2]
[380110819,1755547855448,-2680.09,0.00024109,2]
[380110820,1755547855457,-545.89,0.00024109,2]
[380110821,1755547855466,-600.28,0.00024109,2]
[380110822,1755547855475,-258.76342241,0.00024316,2]
[380110823,1755547855485,-151.78,0.00024335,7]
[380110824,1755547855494,-208.0,0.0002434,2]
[380110825,1755547855504,-160.72,0.00024353,7]
[380110826,1755547855513,-2260.96,0.00024383,2]
[380110827,1755547855523,-517.44,0.00024383,2]
[380110828,1755547855536,-955.03,0.00024383,2]
[380110829,1755547855545,-607.74910949,0.00024383,2]
[380110830,1755547855555,-480.0,0.00024383,2]
[380110831,1755547855563,-1150.62,0.00024383,2]
[380110832,1755547855573,-1619.67,0.00024383,2]